Cogmind - Beta 16 *** ADVENTURER MODE // 2025.12.07 @ 20:32:25 Player: Roach K Result: Self-destructed Performance ------------- Evolutions (1) 500 Regions Visited (2) 400 Robots Destroyed (19) 95 Value Destroyed (381) 381 Prototype IDs (0) 0 Alien Tech Used (0) 0 Bonus (0) 0 TOTAL SCORE: 1376 Bonus ------- None Cogmind --------- Core Integrity 373/400 Matter 1/300 Energy 250/250 System Corruption 0% Temperature Cool (0) Movement Treading (240) Ox1 Location -9/Materials Parts ------- > --- POWER (1) -------- Ion Engine > --- PROPULSION (2) --- Light Treads Light Treads > --- UTILITY (2) ------ Large Storage Unit Large Storage Unit > --- WEAPON (4) ------- Mini Grenade Launcher Mini Grenade Launcher Mini Grenade Launcher Mini Grenade Launcher > --- INVENTORY (15) --- Light Ion Engine Peak State ------------ > --- POWER ------------ Ion Engine > --- PROPULSION ------- Cesium-ion Thruster Cesium-ion Thruster > --- UTILITY ---------- Medium Armor Plating Medium Armor Plating > --- WEAPON ----------- Mini Grenade Launcher Mini Grenade Launcher Mini Grenade Launcher Mini Grenade Launcher > --- INVENTORY -------- Light Ion Engine Large Storage Unit Large Storage Unit [Rating: 19] Favorites ----------- Power Ion Engine Engine Ion Engine Propulsion Light Treads Treads Light Treads Flight Unit Cesium-ion Thruster Utility Medium Armor Plating Storage Small Storage Unit Protection Medium Armor Plating Weapon Mini Grenade Launcher Energy Gun Small Laser Ballistic Gun Assault Rifle Launcher Mini Grenade Launcher Build | -11 -10 -9 ------- Run | Yrd Mat Mat Slots Evolved 2 | . . 2 Power . | . . . Propulsion . | . . . Utility . | . . . Weapon 2 | . . 2 Parts Attached 18 | 8 4 6 Power 2 | 2 . . Engine 2 | 2 . . Core . | . . . Reactor . | . . . Propulsion 4 | 2 . 2 Treads 2 | 2 . . Leg . | . . . Wheel . | . . . Hover . | . . . Flight 2 | . . 2 Utility 6 | 2 2 2 Device . | . . . Storage 4 | 2 . 2 Processor . | . . . Hackware . | . . . Protection 2 | . 2 . Artifact . | . . . Weapon 6 | 2 2 2 Energy Gun 1 | 1 . . Energy Cannon . | . . . Ballistic Gun 1 | 1 . . Ballistic Cannon . | . . . Launcher 4 | . 2 2 Special Weapon . | . . . Impact Weapon . | . . . Slashing Weapon . | . . . Piercing Weapon . | . . . Special Melee Weapon . | . . . Unidentified Prototypes . | . . . Parts Lost 1 | . . 1 Power . | . . . Propulsion . | . . . Utility 1 | . . 1 Weapon . | . . . Highest Loss Streak 1 | . . 1 To Critical Strikes . | . . . Average Backups 2 | . 3 3 Power . | . 1 1 Propulsion . | . . . Utility . | . 1 1 Weapon . | . 1 . Tool/Special . | . . . Unused Backups . | . . . Power . | . . . Propulsion . | . . . Utility . | . . . Weapon . | . . . Tool/Special . | . . . Average Slot Usage (%) 97 | . 99 92 Engine 13 | . 14 11 Treads 24 | . 28 16 Storage 8 | . 11 1 Protection 16 | . 16 17 Energy Gun 3 | . 4 . Ballistic Gun 3 | . 4 . Launcher 24 | . 17 43 Peak Build Rating 19 | 7 11 19 Average Rating 9 | 5 9 14 On Entrance 6 | . 7 11 Avg Prop Armor Cover (%) . | . . . Naked Turns . | . . . Heaviest Build 49 | 14 21 49 Greatest Support 40 | 40 40 40 Greatest Overweight (x) 5 | . . 5 Average Overweight (x) . | . . . Largest Inventory Capacity 15 | 8 8 15 Average Capacity 6 | 7 6 5 Most Carried 5 | 1 5 5 Average Carried 2 | . 3 3 Final Capacity 15 | 8 5 15 Final Carried 5 | 1 5 1 Class Distribution -------------------- 85% | Mutant 14% | Bomber Dominant Class ---------------- Mutant | -10/Materials Bomber | -9/Materials Resources | -11 -10 -9 ----------- Run | Yrd Mat Mat Matter Collected 384 | 326 20 38 Remotely . | . . . Salvage Created 394 | 144 195 55 Parts 34 | 14 18 2 Haulers Intercepted . | . . . Recyclers Shooed 1 | . 1 . Parts Field Recycled . | . . . Retrieved Matter . | . . . Parts Self-Destructed . | . . . Prevented . | . . . Parts Restored . | . . . Kills | -11 -10 -9 ------- Run | Yrd Mat Mat Combat Hostiles Destroyed 9 | . 6 3 Melee 1 | . 1 . AOE 8 | . 5 3 Classes Destroyed 7 | 3 3 1 Worker 2 | 1 1 . Builder 2 | . 2 . Tunneler 3 | 3 . . Recycler 2 | 1 . 1 Watcher 1 | . 1 . Swarmer 3 | . . 3 Grunt 6 | . 6 . Best Kill Streak 6 | 4 6 4 Combat Bots Only 4 | . 4 3 Max Kills in Single Turn 2 | 1 2 2 Gunslinging . | . . . Exploded 2 | . 1 2 Melee 1 | . 1 . Uniques/NPCs Destroyed . | . . . Combat | -11 -10 -9 -------- Run | Yrd Mat Mat Hostile Shots Fired 41 | . 25 16 Missed 14 | . 8 6 Hits 27 | . 17 10 Projectile 27 | . 17 10 Damage Taken 370 | . 225 145 Core 51 | . 24 27 Absorbed by Shields . | . . . Ignored by Resistances 105 | . 66 39 Core Remaining (%) 95 | 100 90 . Volleys Fired 21 | 9 9 3 Largest 4 | 2 2 4 Hottest 120 | 60 60 120 Shots Fired 48 | 18 18 12 Gun 18 | 18 . . Cannon . | . . . Launcher 30 | . 18 12 Special . | . . . Kinetic 9 | 9 . . Thermal 9 | 9 . . Explosive 30 | . 18 12 Electromagnetic . | . . . Robot Hit Streak 14 | 14 9 9 Robot Miss Streak 1 | 1 1 1 Penetration Max . | . . . Secondary Targets . | . . . Shots Hit Robots 33 | 15 13 5 Core Hits 31 | 6 20 5 Critical Kills . | . . . Critical Parts Destroyed . | . . . Critical Strikes . | . . . Melee Attacks . | . . . Impact . | . . . Slashing . | . . . Piercing . | . . . Sneak Attacks . | . . . Combat Hostiles . | . . . Follow-up Attacks . | . . . Damage Inflicted 1294 | 171 816 307 Guns 170 | 170 . . Cannons . | . . . Explosions 1105 | . 798 307 Melee . | . . . Ramming 19 | 1 18 . Kinetic 72 | 72 . . Thermal 98 | 98 . . Explosive 1105 | . 798 307 Electromagnetic . | . . . Impact . | . . . Slashing . | . . . Piercing . | . . . Highest Corruption . | . . . Average Corruption . | . . . Corruption Purged . | . . . Corruption Blocked . | . . . Overload Shots . | . . . Overflow Damage 13 | . 13 . Projectiles . | . . . Explosions 13 | . 13 . Melee . | . . . Knockbacks 1 | . 1 . Impact 1 | . 1 . Kinetic . | . . . Secondary . | . . . Self-Inflicted Damage 125 | . 52 73 Shots 4 | . 2 2 Rammed 11 | 1 10 . Targets Rammed 12 | 1 11 . Kicked . | . . . Crushed 1 | . 1 . Highest Temperature 114 | . 114 100 Average Temperature 45 | . 39 60 Received Heat Transfer 132 | . 126 6 Siege Activations . | . . . Martial Activations . | . . . Shielding Activations . | . . . Robots Disrupted . | . . . Combat Hostiles . | . . . Robots Corrupted . | . . . Combat Hostiles . | . . . Parts Fried . | . . . Impact Corruptions 1 | . 1 . Robots Melted . | . . . Combat Hostiles . | . . . Parts Melted . | . . . Heat Transferred 225 | 225 . . Parts Sabotaged . | . . . Parts Stolen . | . . . Parts Stripped . | . . . Power Chain Reactions . | . . . Alert | -11 -10 -9 ------- Run | Yrd Mat Mat Maximum Alert Level 1 | . 1 . Low Security (%) 88 | 100 79 100 Level 1 11 | . 20 . Level 2 . | . . . Level 3 . | . . . Level 4 . | . . . Level 5 . | . . . High Security . | . . . Max Security . | . . . Peak Influence 239 | 10 239 153 Initial 75 | . 2 75 Average 57 | 1 70 85 Influence Increases 442 | 25 289 128 Destroy 0b10 Robot/C 180 | . 120 60 Destroy 0b10 Robot/NC 50 | 25 20 5 Destroy Leader 32 | . 22 10 Disable Machine 54 | . 54 . Destroy Structure 126 | . 73 53 Influence Decreases 299 | 20 85 194 Entered New Map 137 | . 3 134 Time Decay 152 | 20 82 50 Lost Part 10 | . . 10 Squads Dispatched . | . . . Investigation . | . . . Extermination . | . . . Reinforcement . | . . . Assault . | . . . Garrison . | . . . Intercept . | . . . Searches Triggered . | . . . Construction Impeded . | . . . Haulers Reinforced . | . . . Active Scanning Responses . | . . . Cargo Convoy Interrupts . | . . . Stealth | -11 -10 -9 --------- Run | Yrd Mat Mat Distress Signals 1 | . 1 . Communications Jammed . | . . . Distress Signals . | . . . Times Spotted 15 | . 10 5 Peak Tracking Total 4 | . 4 3 Tactical Retreats . | . . . Traps | -11 -10 -9 ------- Run | Yrd Mat Mat Traps Triggered . | . . . Indirectly . | . . . Trap Hack Attempts . | . . . Triggered . | . . . Disarmed . | . . . Reprogrammed . | . . . Reused . | . . . Traps Extracted . | . . . Installed . | . . . Triggered . | . . . Machines | -11 -10 -9 ---------- Run | Yrd Mat Mat Machines Disabled 6 | . 6 . Max in Single Turn 4 | . 4 . Machines Repaired . | . . . Machines Dismantled . | . . . Machines Sabotaged . | . . . Overloaded Fab Kills . | . . . Hacking | -11 -10 -9 --------- Run | Yrd Mat Mat Machines Accessed . | . . . Terminals . | . . . Fabricators . | . . . Repair Stations . | . . . Recycling Units . | . . . Scanalyzers . | . . . Garrison Access . | . . . Total Hacks . | . . . Successful . | . . . Failed . | . . . Catastrophic . | . . . Database Lockouts . | . . . Manual . | . . . Terminals . | . . . Fabricators . | . . . Repair Stations . | . . . Recycling Units . | . . . Scanalyzers . | . . . Garrison Access . | . . . Terminal Hacks . | . . . Fabricator Hacks . | . . . Repair Station Hacks . | . . . Recycling Unit Hacks . | . . . Scanalyzer . | . . . Garrison Access Hacks . | . . . Unauthorized Hacks . | . . . Terminals . | . . . Fabricators . | . . . Repair Stations . | . . . Recycling Units . | . . . Scanalyzers . | . . . Garrison Access . | . . . Data Cores Recovered . | . . . Used . | . . . Hacking Detections . | . . . Full Trace Events . | . . . Feedback Events . | . . . Feedback Blocked . | . . . Robot Schematics Acquired . | . . . Robots Built . | . . . Authchips . | . . . Time . | . . . Total Robot Build Rating . | . . . Part Schematics Acquired . | . . . Parts Built . | . . . Authchips . | . . . Time . | . . . Total Part Build Rating . | . . . Part Studies Acquired . | . . . Parts Repaired . | . . . Time . | . . . Parts Recycled . | . . . Recycled Matter . | . . . Retrieved Matter . | . . . Retrieved Components . | . . . Parts Scanalyzed . | . . . Part Schematics Acquired . | . . . Parts Damaged . | . . . Bothacking | -11 -10 -9 ------------ Run | Yrd Mat Mat Used RIF Installer . | . . . Robots Hacked . | . . . Non-combat . | . . . Combat . | . . . Robot Hacks Applied . | . . . Relay Couplers Released . | . . . Fabnet Peak Effective % . | . . . Robots Rewired . | . . . Allies Hacked . | . . . Hacks Repelled . | . . . Allies | -11 -10 -9 -------- Run | Yrd Mat Mat Total Allies . | . . . Largest Group . | . . . Highest-Rated Group . | . . . Highest-Rated Ally . | . . . Total Orders . | . . . Ally Attacks . | . . . Total Damage . | . . . Kills . | . . . Allies Corrupted . | . . . Allies Melted . | . . . Intel | -11 -10 -9 ------- Run | Yrd Mat Mat Active Infowar (turns) . | . . . Robot Analysis Total . | . . . Derelict Logs Recovered . | . . . Drone Launches . | . . . Drone Recoveries . | . . . Exploration | -11 -10 -9 ------------- Run | Yrd Mat Mat Turns Passed 562 | 136 308 118 Spaces Moved 275 | 63 158 54 Core 7 | 5 . 2 Treads 263 | 58 158 47 Legs . | . . . Wheels . | . . . Hover . | . . . Flight 5 | . . 5 Fastest Speed 50 | 50 160 160 Average Speed 160 | 151 160 172 Slowest Speed 300 | 160 160 300 Overloaded Moves . | . . . Propulsion Burnouts . | . . . Robots Hopped . | . . . Potential Cave-ins . | . . . Cave-ins Triggered . | . . . Exploration Rate (%) 21 | 4 48 11 Regions Visited 2 Branch Regions . Pre-discovered Areas . | . . . Known Exits Taken . | . . . Unknown Exits Taken 2 | 1 1 . Scrap Searched . | . . . Spaces Dug . | . . . Terrain Destroyed 170 | . 95 75 Melee . | . . . Projectile . | . . . AOE 170 | . 95 75 Terrain Rammed . | . . . Walls Destroyed . | . . . Machines Disabled . | . . . Actions | -11 -10 -9 --------- Run | Yrd Mat Mat Total 342 | 81 189 72 Wait . | . . . Move 273 | 62 157 54 Hop . | . . . Pick Up 6 | . 4 2 Fast Attach 13 | 7 4 2 Attach 6 | . . 6 Detach . | . . . Swap 2 | 2 . . Drop 9 | . 4 5 Fire 21 | 9 9 3 Melee . | . . . Ram . | . . . Kick . | . . . Crush 12 | 1 11 . Escape Stasis . | . . . Rewire . | . . . Trap . | . . . Miscellaneous . | . . . Route ------- -11/Scrapyard -10/Materials -9/Materials (discovered 1 exit: [*Sto]) History --------- Turn | Location | Event 7 | -11/Scrapyard | Discovered new exit (range 16) 137 | -11/Scrapyard | Entered Materials 317 | -10/Materials | Build established: Mutant 421 | -10/Materials | Discovered new exit (range 15) 445 | -10/Materials | Entered another Materials area 445 | -9/Materials | Evolved 2 slots: Weapon x2 558 | -9/Materials | Discovered new exit (range 13) 563 | -9/Materials | Self-destructed Last Messages --------------- R-06 Scavenger collects Lgt. Treads. Dropped Cesium-ion Thruster. R-06 Scavenger destroyed. Med. Armor Plating destroyed. Destroyed Med. Armor Plating. The unstable cave ceiling collapses. S-10 Pest destroyed. The unstable cave ceiling collapses. Acquired 38 matter. S-10 Pest destroyed. The unstable cave ceiling collapses. Acquired Lgt. Treads. The unstable cave ceiling collapses. Acquired Lgt. Treads. Dropped Med. Armor Plating. EXIT=FOUND C-30 ARC bursts open, deploying its payload. G-47 Trooper unfolds itself. G-34 Mercenary unfolds itself. [Achievement: Oops] Map ----- +----------------------------------------------------+ | ????????????????????????????????????? | | ??????????????????????????#####?????? | | ???????????????????######## #?????? | | ???????????????????# # #?????? | | ???????????????????# """ # #?????? | | ???????????????????# """ + #?????? | | ???????????????????# """ # #?????? | | ???????????????????# # #?????? | | ???????????????????# # #?????? | | ???????????????????######## #?????? | | ??????????????????######### #?????? | | ??????????????????# # #?????? | | ??????????????????# + #?????? | | ??????????????????# = # #?????? | | ??????????????????######### #####?? | | ???????????????????? # # ?? | | ???????????????????? # # ?? | | ??????????????????? # # """ ? | | ??????????????????# """ """ # | | ??????????????????# """ # """ # | | ??????????????????# """ # | | ??????????????????# """ # | | ??????????????????# """ """ # | | ??????????????????# """ """ # | | ??????????? +%""" # | | ?????????????? ??# g @ "T" # | | ?????????????? # # # # ! # # | | ????????????? ##???? | | ????????????? #???? | | ????????????? #???? | | ??????????????##+# # * ##??? | | ?????????????? # #??? | | ?????????????? # # == #??? | | ?????????????# ?## == #??? | | ?????????????# ##??? | | ?????????????? < ####???? | | ??????????????? ###??????? | | ???????????????? ###????????? | | ??????????????? # #??????????? | | ???????????????? ###???????????? | | ???????????????######???????????????? | | ????????????????????????????????????? | | ????????????????????????????????????? | | ????????????????????????????????????? | | ????????????????????????????????????? | | ????????????????????????????????????? | | ????????????????????????????????????? | | ????????????????????????????????????? | | ????????????????????????????????????? | | ????????????????????????????????????? | +----------------------------------------------------+ Best States ------------- Heat Dissipation 28 Energy Generation 10 Energy Capacity 250 Matter Stores 341 Matter Capacity 350 Sight Range 16 Terrain Scan Density 10 Armor Coverage 450 Resistance: KI 20 Resistance: TH 20 Resistance: EX 20 Resistance: EM 20 Resistance: I 20 Resistance: S 20 Resistance: P 20 Evasion (%) 40 Recoil Reduction 2 Offensive Hacking 10 Item Schematics ----------------- None Robot Schematics ------------------ None Fabricated ------------ Nothing Repaired ---------- Nothing Studied --------- None Alien Tech Used ----------------- None Achievements -------------- Oops Challenges ------------ None Game ------ Seed GaussCobblerSink Manual? 0 Play Time 00:06:32 Cumulative 3.1 hours Start 2025.12.07 @ 17:37:14 End 2025.12.07 @ 20:32:25 Sessions 3 Manual Loads 0 Difficulty Adventurer Special Mode None Game No. 7 Rogue 0 Adventurer 7 Explorer 0 Win Type - Total 0 Types 0/0/0/0/0/0/0/0/0/0 Lore% 0 Gallery% 6 Achievement% 6 Wizard Run 0 Options --------- Layout 1 ASCII 0 Keyboard 0 Movement Numpad Keybinds 0 Fullscreen 1 Font 24/Smallcaps Map View 50x35 Zoom Use 0% Tactical HUD 0 Map Filters NONE Filters NONE Steam 1 RUN: 38013711-3cbc-4abf-8068-670bbd872360